Workbook

Sheet Instructions
B1: Here's some quick instructions for the ss. You need to know a bit about Excel to run it.
A2: 1 | B2: First thing to do is keep a initial version of the spreadsheets with no entries so a clean copy. Do a 'File>Save as' and give the file another name like your jackpot's date and district.
A3: 2 | B3: The Payout tab is to help calculate the number of placings and the amount for each placing. Just enter the # of entries for Open or Youth and the amount of the entry fee that is going into the payout.
A4: 3 | B4: In the Open tab, I have entered a random number formula in the No. column. Once all your entries are typed in then use the 'Data>sort' to sort based on the No. column. Make sure you cursor is in the cell A3 before you select Data>Sort and that once it is selected, all your entry info is selected for the sort. Don't miss a column or it will be a mess. That will give you a true random sort for the running order. Then you can replace those numbers in the No. column with 1,2,3, etc.
A5: 4 | B5: Enter the division time split based on size of pattern in the first row in the cell above the 'Time'. The ss will use these to calcualte the Division splits.
A6: 5 | B6: Enter the times on the Run 1 and Run 2. If a barrel is knocked or there is a no time, enter 'NT' in the Run 1 or Run 2. The spreadsheet will move the fastest time to the Time column.
A7: 6 | B7: As the times get entered, the fastest time will be moved to the cell in the first row above the D1 column and the D2 and D3 splits will be calculated based on the fastest time.
A8: 7 | B8: Can use the sort, same was as in #3 except on the Time column for the sort to get the placings. You will have to manually enter the placings and payout. Didn't get that far with this ss.

Sheet DERBY
C1: DERBY | D1: 2011-10-11 | I1: 0.7 | J1: =MIN(E3:G359) -> 17.088 | K1: =+J1+I1 -> 17.788
A2: NO. | B2: NO | C2: NAME | D2: HORSE | E2: Run 1 | F2: PL | G2: Run 2 | H2: PL | I2: Time | J2: D1 | K2: D2 | L2: TOTAL | M2: SHORT GO | N2: FINAL
A3: 2 | B3: 28 | C3: *LACI SUITOR | D3: SWIFT MACHINE | E3: 17.555 | G3: 17.597 | I3: =MIN(E3:G3) -> 17.555 | J3: =IF(I3<K$1,I3,0) -> 17.555 | K3: =IF(J3=0,IF(I3<L$1,I3,0),0) -> 0 | L3: =SUM(E3+G3) -> 35.152 | M3: 17.471 | N3: =SUM(L3+M3) -> 52.623
A4: 4 | B4: 13 | C4: *LYNETTE BRODOWAY | D4: SR ROOT SIXTY SIX | E4: 17.698 | G4: 17.65 | I4: =MIN(E4:G4) -> 17.65 | J4: =IF(I4<K$1,I4,0) -> 17.65 | K4: =IF(J4=0,IF(I4<L$1,I4,0),0) -> 0 | L4: =SUM(E4+G4) -> 35.348 | M4: 17.354 | N4: =SUM(L4+M4) -> 52.702
A5: 5 | B5: 24 | C5: *SONDA MARKS | D5: DELTAS FIRST CANDLE | E5: 17.863 | G5: 17.514 | I5: =MIN(E5:G5) -> 17.514 | J5: =IF(I5<K$1,I5,0) -> 17.514 | K5: =IF(J5=0,IF(I5<L$1,I5,0),0) -> 0 | L5: =SUM(E5+G5) -> 35.377 | M5: 17.395 | N5: =SUM(L5+M5) -> 52.772
A6: 3 | B6: 58 | C6: *BRAIDY HOWES | D6: HOWES ON HER LINCOLN | E6: 17.548 | G6: 17.674 | I6: =MIN(E6:G6) -> 17.548 | J6: =IF(I6<K$1,I6,0) -> 17.548 | K6: =IF(J6=0,IF(I6<L$1,I6,0),0) -> 0 | L6: =SUM(E6+G6) -> 35.222 | M6: 17.616 | N6: =SUM(L6+M6) -> 52.838
A7: 6 | B7: 55 | C7: NANCY CSABAY | D7: KATIES GOTA FAST ONE | E7: 17.761 | G7: 17.666 | I7: =MIN(E7:G7) -> 17.666 | J7: =IF(I7<K$1,I7,0) -> 17.666 | K7: =IF(J7=0,IF(I7<L$1,I7,0),0) -> 0 | L7: =SUM(E7+G7) -> 35.427 | M7: 17.617 | N7: =SUM(L7+M7) -> 53.044
A8: 9 | B8: 6 | C8: *LACEY STANTON | D8: LOTSA COCKTAILS | E8: 17.687 | G8: 17.976 | I8: =MIN(E8:G8) -> 17.687 | J8: =IF(I8<K$1,I8,0) -> 17.687 | K8: =IF(J8=0,IF(I8<L$1,I8,0),0) -> 0 | L8: =SUM(E8+G8) -> 35.663 | M8: 17.398 | N8: =SUM(L8+M8) -> 53.061
A9: 7 | B9: 56 | C9: *KERI BABCOOK ** | D9: WINNING APROACH | E9: 17.469 | G9: 18.031 | I9: =MIN(E9:G9) -> 17.469 | J9: =IF(I9<K$1,I9,0) -> 17.469 | K9: =IF(J9=0,IF(I9<L$1,I9,0),0) -> 0 | L9: =SUM(E9+G9) -> 35.5 | M9: 17.704 | N9: =SUM(L9+M9) -> 53.204
A10: 10 | B10: 18 | C10: MAXINE MCKENNA | D10: FEATURED JESS | E10: 17.976 | G10: 17.811 | I10: =MIN(E10:G10) -> 17.811 | J10: =IF(I10<K$1,I10,0) -> 0 | K10: =IF(J10=0,IF(I10<L$1,I10,0),0) -> 0 | L10: =SUM(E10+G10) -> 35.787 | M10: 17.444 | N10: =SUM(L10+M10) -> 53.231
A11: 1 | B11: 3 | C11: *BRAIDY HOWES | D11: ROYALLY WICKED | E11: 17.571 | G11: 17.088 | I11: =MIN(E11:G11) -> 17.088 | J11: =IF(I11<K$1,I11,0) -> 17.088 | K11: =IF(J11=0,IF(I11<L$1,I11,0),0) -> 0 | L11: =SUM(E11+G11) -> 34.659 | M11: 50 | N11: =SUM(L11+M11) -> 84.659
A12: 8 | B12: 35 | C12: *KAYE STOESSER | D12: HERBIE TWO | E12: 17.975 | G12: 17.574 | I12: =MIN(E12:G12) -> 17.574 | J12: =IF(I12<K$1,I12,0) -> 17.574 | K12: =IF(J12=0,IF(I12<L$1,I12,0),0) -> 0 | L12: =SUM(E12+G12) -> 35.549 | M12: 50 | N12: =SUM(L12+M12) -> 85.549
A13: 11 | B13: 14 | C13: *RYLEE MCKENNZIE** | D13: MILLIOMAIRE PARADISE | E13: 17.997 | G13: 17.902 | I13: =MIN(E13:G13) -> 17.902 | J13: =IF(I13<K$1,I13,0) -> 0 | K13: =IF(J13=0,IF(I13<L$1,I13,0),0) -> 0 | L13: =SUM(E13+G13) -> 35.899 | M13: 50 | N13: =SUM(L13+M13) -> 85.899
A14: 12 | B14: 26 | C14: *KERRY MAYNES | D14: BUGS EASY JUDGE | E14: 17.934 | G14: 18.002 | I14: =MIN(E14:G14) -> 17.934 | J14: =IF(I14<K$1,I14,0) -> 0 | K14: =IF(J14=0,IF(I14<L$1,I14,0),0) -> 0 | L14: =SUM(E14+G14) -> 35.936 | M14: 50 | N14: =SUM(L14+M14) -> 85.936
A15: 13 | B15: 57 | C15: *CASEY SIMPSON | D15: PISTOLS LIL ROJA | E15: 18.045 | G15: 17.942 | I15: =MIN(E15:G15) -> 17.942 | J15: =IF(I15<K$1,I15,0) -> 0 | K15: =IF(J15=0,IF(I15<L$1,I15,0),0) -> 0 | L15: =SUM(E15+G15) -> 35.987 | N15: =SUM(L15+M15) -> 35.987
A16: 14 | B16: 30 | C16: *BUFFY MORTON | D16: BLUE EM OVER | E16: 18.015 | G16: 17.999 | I16: 17.999 | J16: 0 | K16: 0 | L16: 36.014 | N16: 36.014
A17: 15 | B17: 33 | C17: *BRAIDY HOWES | D17: HOWES ALODED SHOTGUN | E17: 18.448 | G17: 17.657 | I17: 17.657 | J17: 17.657 | K17: 0 | L17: 36.105 | N17: 36.105
A18: 16 | B18: 64 | C18: *TRACY BECKMAN** | D18: GRAB ME A CORONA | E18: 18.411 | G18: 17.704 | I18: 17.704 | J18: 17.704 | K18: 0 | L18: 36.115 | N18: 36.115
A19: 17 | B19: 1 | C19: TERRY WOODWARD** | D19: SAQ COW BOY PINE | E19: 18.123 | G19: 18.078 | I19: 18.078 | J19: 0 | K19: 0 | L19: 36.201 | N19: 36.201
A20: 18 | B20: 23 | C20: TRACI MACDONALD ** | D20: COPY N PARADISE | E20: 18.266 | G20: 17.969 | I20: 17.969 | J20: 0 | K20: 0 | L20: 36.235 | N20: 36.235
A21: 19 | B21: 61 | C21: *KAREEN WARREN | D21: THIS BULLY IS BACK | E21: 18.213 | G21: 18.032 | I21: 18.032 | J21: 0 | K21: 0 | L21: 36.245 | N21: 36.245
A22: 20 | B22: 9 | C22: *SHAYNA DODDS | D22: MR BLEW BOON | E22: 18.369 | G22: 17.929 | I22: 17.929 | J22: 0 | K22: 0 | L22: 36.298 | N22: 36.298
A23: 21 | B23: 62 | C23: VAL NELSON** | D23: WRANGLERS SLIDER | E23: 18.389 | G23: 17.91 | I23: 17.91 | J23: 0 | K23: 0 | L23: 36.299 | N23: 36.299
A24: 22 | B24: 42 | C24: *BUFFY MORTON | D24: WHIZ N LEO | E24: 18.276 | G24: 18.091 | I24: 18.091 | J24: 0 | K24: 0 | L24: 36.367 | N24: 36.367
A25: 23 | B25: 20 | C25: CINDY BROCK** | D25: TWO EYED SPOOK | E25: 18.036 | G25: 18.381 | I25: 18.036 | J25: 0 | K25: 0 | L25: 36.417 | N25: 36.417
A26: 24 | B26: 36 | C26: RAYLEE EDWARDS | D26: EASY BUY SUE | E26: 17.886 | G26: 18.707 | I26: 17.886 | J26: 0 | K26: 0 | L26: 36.593 | N26: 36.593
A27: 25 | B27: 31 | C27: NANCY CSABAY | D27: TWOTICKETSTOPARADISE | E27: 18.284 | G27: 18.35 | I27: 18.284 | J27: 0 | K27: 0 | L27: 36.634 | N27: 36.634
A28: 26 | B28: 37 | C28: *KARLA WALTZE ** | D28: STELLAR FEATURE | E28: 17.922 | G28: 18.787 | I28: 17.922 | J28: 0 | K28: 0 | L28: 36.709 | N28: 36.709
A29: 27 | B29: 45 | C29: *WANDA DENHAM ** | D29: STEELDUST TWISTER | E29: 18.439 | G29: 18.275 | I29: 18.275 | J29: 0 | K29: 0 | L29: 36.714 | N29: 36.714
A30: 28 | B30: 21 | C30: *SIMMONE FOWLER ** | D30: AVID RUBY | E30: 18.409 | G30: 18.329 | I30: 18.329 | J30: 0 | K30: 0 | L30: 36.738 | N30: 36.738
A31: 29 | B31: 51 | C31: *SANDRA MAFFENBEIER ** | D31: TAKE TIME TO PLAY | E31: 18.202 | G31: 18.69 | I31: 18.202 | J31: 0 | K31: 0 | L31: 36.892 | N31: 36.892
A32: 30 | B32: 60 | C32: KIM BOYD ** | D32: JUST A SPECIAL CHICK | E32: 18.556 | G32: 18.469 | I32: 18.469 | J32: 0 | K32: 0 | L32: 37.025 | N32: 37.025
A33: 31 | B33: 5 | C33: *KAYLEA ARGENT ** | D33: VL DELIRIOUSLY DIALIN | E33: 18.521 | G33: 18.558 | I33: 18.521 | J33: 0 | K33: 0 | L33: 37.079 | N33: 37.079
A34: 32 | B34: 47 | C34: *FRAN JOHNSON ** | D34: PASSEM BUGS | E34: 18.46 | G34: 18.633 | I34: 18.46 | J34: 0 | K34: 0 | L34: 37.093 | N34: 37.093
A35: 33 | B35: 7 | C35: *NINA SMITH ** | D35: CLOUD GREY | E35: 18.416 | G35: 18.807 | I35: =MIN(E35:G35) -> 18.416 | J35: =IF(I35<K$1,I35,0) -> 0 | K35: =IF(J35=0,IF(I35<L$1,I35,0),0) -> 0 | L35: 37.223 | N35: =SUM(L35+M35) -> 37.223
A36: 34 | B36: 25 | C36: *PAM VEER ** | D36: CLYMONA JD DANDY | E36: 18.615 | G36: 18.642 | I36: 18.615 | J36: 0 | K36: 0 | L36: 37.257 | N36: 37.257
A37: 35 | B37: 32 | C37: COLIN BALAN ** | D37: BLUE AHEAD OF THEM | E37: 18.922 | G37: 18.355 | I37: 18.355 | J37: 0 | K37: 0 | L37: 37.277 | N37: 37.277
A38: 36 | B38: 54 | C38: RAYLEE EDWARDS | D38: GENERALY STREAKIN | E38: 19.019 | G38: 18.273 | I38: 18.273 | J38: 0 | K38: 0 | L38: 37.292 | N38: 37.292
A39: 37 | B39: 16 | C39: *LAUREEN RUSSELL** | D39: IMA VEGAS SPECIAL | E39: 18.276 | G39: 19.171 | I39: 18.276 | J39: 0 | K39: 0 | L39: 37.447 | N39: 37.447
A40: 38 | B40: 12 | C40: MONICA KIPPERS ** | D40: SMOKIN LUCKY FIVE | E40: 18.932 | G40: 19.01 | I40: 18.932 | J40: 0 | K40: 0 | L40: 37.942 | N40: 37.942
A41: 39 | B41: 11 | C41: ROBIN HNUSHKA | D41: AVIDS RAPID BUG | E41: 19.099 | G41: 19.033 | I41: 19.033 | J41: 0 | K41: 0 | L41: 38.132 | N41: 38.132
A42: 40 | B42: 4 | C42: JORDIE LIKE | D42: DIAMOND CLASS ACT | E42: 19.019 | G42: 19.19 | I42: 19.019 | J42: 0 | K42: 0 | L42: 38.209 | N42: 38.209
A43: 41 | B43: 41 | C43: JACQUELINE STOJAN | D43: TWO BITZ FRITZ | E43: 18.403 | G43: 20.218 | I43: 18.403 | J43: 0 | K43: 0 | L43: 38.621 | N43: 38.621
A44: 42 | B44: 17 | C44: *RANDA NUGENT ** | D44: WATCH KATIE RUNAWAY | E44: 22.007 | G44: 18.5 | I44: 18.5 | J44: 0 | K44: 0 | L44: 40.507 | N44: 40.507
A45: 43 | B45: 38 | C45: SHARYL MALIN | D45: LEOS PASS EM CASH | E45: 25.77 | G45: 21.375 | I45: 21.375 | J45: 0 | K45: 0 | L45: 47.145 | N45: 47.145
A46: 44 | B46: 52 | C46: *KIM EATON | D46: JUST LITTLE MOON | E46: 50 | G46: 50 | I46: 50 | J46: 0 | K46: 0 | L46: =IF(I46>L$1,I46,0) -> 50 | N46: 50
A47: 45 | B47: 50 | C47: *RUSTY RAE QUAM | D47: ROSA CALIENTE | E47: 50 | G47: 17.579 | I47: 17.579 | J47: 17.579 | K47: 0 | L47: =SUM(E47+G47) -> 67.579 | N47: 67.579
A48: 46 | B48: 2 | C48: *TARA MULDOON ** | D48: REVED AND RAPID | E48: 50 | G48: 17.668 | I48: 17.668 | J48: 17.668 | K48: 0 | L48: 67.668 | N48: 67.668
A49: 47 | B49: 43 | C49: *JACQUELINE HOOVER | D49: SUNNY SAPPHIRE | E49: 50 | G49: 17.731 | I49: 17.731 | J49: 17.731 | K49: 0 | L49: 67.731 | N49: 67.731
A50: 48 | B50: 44 | C50: *LUCY DEE ROY | D50: FAMOUS PICTURE | E50: 50 | G50: 17.805 | I50: 17.805 | J50: 0 | K50: 0 | L50: 67.805 | N50: 67.805
A51: 49 | B51: 40 | C51: NIKI MAKOFKA | D51: FIRST START UNLEASHED | E51: 17.921 | G51: 50 | I51: 17.921 | J51: 0 | K51: 0 | L51: 67.921 | N51: 67.921
A52: 50 | B52: 59 | C52: *LANA BOHNET ** | D52: TOP POSSIBILITY | E52: 18.01 | G52: 50 | I52: 18.01 | J52: 0 | K52: 0 | L52: 68.01 | N52: 68.01
A53: 51 | B53: 48 | C53: KRYSTAL MOREN | D53: PISTOLS CASH EFFORT | E53: 50 | G53: 18.113 | I53: 18.113 | J53: 0 | K53: 0 | L53: 68.113 | N53: 68.113
A54: 52 | B54: 15 | C54: JODI POBUDA | D54: KN IMA BIG BEAR | E54: 18.164 | G54: 50 | I54: 18.164 | J54: 0 | K54: 0 | L54: 68.164 | N54: 68.164
A55: 53 | B55: 49 | C55: MAXINE MCKENNA | D55: FELON | E55: 18.205 | G55: 50 | I55: 18.205 | J55: 0 | K55: 0 | L55: 68.205 | N55: 68.205
A56: 54 | B56: 53 | C56: *JACQUELINE STOJAN** | D56: DASHING PANTHER | E56: 18.231 | G56: 50 | I56: 18.231 | J56: 0 | K56: 0 | L56: 68.231 | N56: 68.231
A57: 55 | B57: 19 | C57: *GINA SHANTZ | D57: FAMOUS SAVANAH | E57: 50 | G57: 18.375 | I57: 18.375 | J57: 0 | K57: 0 | L57: 68.375 | N57: 68.375
A58: 56 | B58: 63 | C58: *ASHLEY ROY** | D58: A RARE KEPT PROMISE | E58: 18.777 | G58: 50 | I58: 18.777 | J58: 0 | K58: 0 | L58: 68.777 | N58: 68.777
A59: 57 | B59: 8 | C59: *TAYLOR GARDNER | D59: EQUINE EXCELLENCE | E59: 19.015 | G59: 50 | I59: 19.015 | J59: 0 | K59: 0 | L59: 69.015 | N59: 69.015
A60: 58 | B60: 39 | C60: *MELISSA BERTHIAUME | D60: IN THE NIC OF TIME | E60: 50 | G60: 19.415 | I60: 19.415 | J60: 0 | K60: 0 | L60: 69.415 | N60: 69.415
A61: 59 | B61: 27 | C61: *DONNA BEIERBACH | D61: KATIES MINE | E61: 50 | G61: 23.885 | I61: 23.885 | J61: 0 | K61: 0 | L61: 73.885 | N61: 73.885
A62: 60 | B62: 10 | C62: *DELANE PECK ** | D62: JUST HIGHONDIAMONS | E62: 50 | G62: 50 | I62: 50 | J62: 0 | K62: 0 | L62: 100 | N62: 100
A63: 61 | B63: 22 | C63: *BOBBIE ROBINSON ** | D63: DOCS SKIPPEN SAILS | E63: 50 | G63: 50 | I63: 50 | J63: 0 | K63: 0 | L63: 100 | N63: 100
A64: 62 | B64: 29 | C64: ABBIE GATTEY | D64: CAUGHT ME A LENA | E64: 50 | G64: 50 | I64: 50 | J64: 0 | K64: 0 | L64: 100 | N64: 100
A65: 63 | B65: 34 | C65: KRISTY GILCHRIST | D65: MONEYS SUPERMAN | E65: 50 | G65: 50 | I65: 50 | J65: 0 | K65: 0 | L65: 100 | N65: 100
A66: 64 | B66: 46 | C66: *RENIE SCHNTZLER ** | D66: RC PACKIN GOLD | E66: 50 | G66: 50 | I66: 50 | J66: 0 | K66: 0 | L66: 100 | N66: 100
A67: 65 | B67: 65 | I67: =MIN(E67:G67) -> 0 | J67: =IF(I67<K$1,I67,0) -> 0 | K67: =IF(J67=0,IF(I67<L$1,I67,0),0) -> 0 | L67: =IF(I67>L$1,I67,0) -> 0
A68: 66 | B68: 66 | I68: 0 | J68: 0 | K68: 0 | L68: 0
A69: 67 | B69: 67 | I69: 0 | J69: 0 | K69: 0 | L69: 0
A70: 68 | B70: 68 | I70: 0 | J70: 0 | K70: 0 | L70: 0
A71: 69 | B71: 69 | I71: 0 | J71: 0 | K71: 0 | L71: 0
A72: 70 | B72: 70 | I72: 0 | J72: 0 | K72: 0 | L72: 0
A73: 71 | B73: 71 | I73: 0 | J73: 0 | K73: 0 | L73: 0
A74: 72 | B74: 72 | I74: 0 | J74: 0 | K74: 0 | L74: 0
A75: 73 | B75: 73 | I75: 0 | J75: 0 | K75: 0 | L75: 0
A76: 74 | B76: 74 | I76: 0 | J76: 0 | K76: 0 | L76: 0
A77: 75 | B77: 75 | I77: 0 | J77: 0 | K77: 0 | L77: 0
A78: 76 | B78: 76 | I78: 0 | J78: 0 | K78: 0 | L78: 0
A79: 77 | B79: 77 | I79: 0 | J79: 0 | K79: 0 | L79: 0
A80: 78 | B80: 78 | I80: 0 | J80: 0 | K80: 0 | L80: 0
A81: 79 | B81: 79 | I81: 0 | J81: 0 | K81: 0 | L81: 0
A82: 80 | B82: 80 | I82: 0 | J82: 0 | K82: 0 | L82: 0
A83: 81 | B83: 81 | I83: 0 | J83: 0 | K83: 0 | L83: 0
A84: 82 | B84: 82 | I84: 0 | J84: 0 | K84: 0 | L84: 0
A85: 83 | B85: 83 | I85: 0 | J85: 0 | K85: 0 | L85: 0
A86: 84 | B86: 84 | I86: 0 | J86: 0 | K86: 0 | L86: 0
A87: 85 | B87: 85 | I87: 0 | J87: 0 | K87: 0 | L87: 0
A88: 86 | B88: 86 | I88: 0 | J88: 0 | K88: 0 | L88: 0
A89: 87 | B89: 87 | I89: 0 | J89: 0 | K89: 0 | L89: 0
A90: 88 | B90: 88 | I90: 0 | J90: 0 | K90: 0 | L90: 0
A91: 89 | B91: 89 | I91: 0 | J91: 0 | K91: 0 | L91: 0
A92: 90 | B92: 90 | I92: 0 | J92: 0 | K92: 0 | L92: 0
A93: 91 | B93: 91 | I93: 0 | J93: 0 | K93: 0 | L93: 0
A94: 92 | B94: 92 | I94: 0 | J94: 0 | K94: 0 | L94: 0
A95: 93 | B95: 93 | I95: 0 | J95: 0 | K95: 0 | L95: 0
A96: 94 | B96: 94 | I96: 0 | J96: 0 | K96: 0 | L96: 0
A97: 95 | B97: 95 | I97: 0 | J97: 0 | K97: 0 | L97: 0
A98: 96 | B98: 96 | I98: 0 | J98: 0 | K98: 0 | L98: 0
B99: 97 | I99: 0 | J99: =IF(I99<K$1,I99,0) -> 0 | K99: =IF(J99=0,IF(I99<L$1,I99,0),0) -> 0 | L99: 0
B100: 98 | I100: 0 | J100: 0 | K100: 0 | L100: 0
A304: 254
A305: 255
A306: 256
A307: 257
A308: 258
A309: 259
A310: 260
A311: 261
A312: 262
A313: 263
A314: 264
A315: 265
A316: 266
A317: 267
A318: 268
A319: 269
A320: 270
A321: 271
A322: 272
A323: 273
A324: 274
A325: 275
A326: 276
A327: 277
A328: 278
A329: 279
A330: 280
A331: 281
A332: 282
A333: 283
A334: 284
A335: 285
A336: 286
A337: 287
A338: 288
A339: 289
A340: 290
A341: 291
A342: 292
A343: 293
A344: 294
A345: 295
A346: 296
A347: 297
A348: 298
A349: 299

Sheet Payout
B2: Open | C2: Youth
A3: # of entries | B3: 51 | C3: 25
A4: EF to Jackpot | D4: *enter the amount of the EF that is going into the payout per entry.
A5: Total | B5: =+B3*B4 -> 0 | C5: =+C3*C4 -> 0
A6: Added $ | B6: 0 | C6: 0 | D6: *add in any added money
A7: Total Purse | B7: =+B6+B5 -> 0 | C7: =+C6+C5 -> 0
A9: Placing Per Div | D9: *caculates the # of placings and amount based on ABRA rule book
A10: first | B10: =IF(B7>1999.99,(B7*0.23)/3,IF(B3<10,B7/3,IF(B3<21,(B7*0.6)/3,IF(B3<31,(B7*0.45)/3,IF(B3<41,(B7*0.4)/3,IF(B3<51,(B7*0.34)/3,(B7*0.29)/3)))))) -> 0 | C10: =IF(C7>1999.99,(C7*0.23)/3,IF(C3<10,C7/3,IF(C3<21,(C7*0.6)/3,IF(C3<31,(C7*0.45)/3,IF(C3<41,(C7*0.4)/3,IF(C3<51,(C7*0.34)/3,(C7*0.29)/3)))))) -> 0
A11: second | B11: =IF(B7>1999.99,(B7*0.2)/3,IF(B3<10,0,IF(B3<21,(B7*0.4)/3,IF(B3<31,(B7*0.35)/3,IF(B3<41,(B7*0.3)/3,IF(B3<51,(B7*0.26)/3,(B7*0.24)/3)))))) -> 0 | C11: =IF(C7>1999.99,(C7*0.2)/3,IF(C3<10,0,IF(C3<21,(C7*0.4)/3,IF(C3<31,(C7*0.35)/3,IF(C3<41,(C7*0.3)/3,IF(C3<51,(C7*0.26)/3,(C7*0.24)/3)))))) -> 0
A12: third | B12: =IF(B7>1999.99,(B7*0.17)/3,IF(B3<21,0,IF(B3<31,(B7*0.2)/3,IF(B3<41,(B7*0.2)/3,IF(B3<51,(B7*0.18)/3,(B7*0.19)/3))))) -> 0 | C12: =IF(C7>1999.99,(C7*0.17)/3,IF(C3<21,0,IF(C3<31,(C7*0.2)/3,IF(C3<41,(C7*0.2)/3,IF(C3<51,(C7*0.18)/3,(C7*0.19)/3))))) -> 0
A13: fourth | B13: =IF(B7>1999.99,(B7*0.14)/3,IF(B3<31,0,IF(B3<41,(B7*0.1)/3,IF(B3<51,(B7*0.14)/3,(B7*0.14)/3)))) -> 0 | C13: =IF(C7>1999.99,(C7*0.14)/3,IF(C3<31,0,IF(C3<41,(C7*0.1)/3,IF(C3<51,(C7*0.14)/3,(C7*0.14)/3)))) -> 0
A14: fifth | B14: =IF(B7>1999.99,(B7*0.11)/3,IF(B3<41,0,IF(B3<51,(B7*0.08)/3,(B7*0.09)/3))) -> 0 | C14: =IF(C7>1999.99,(C7*0.11)/3,IF(C3<41,0,IF(C3<51,(C7*0.08)/3,(C7*0.09)/3))) -> 0
A15: sixth | B15: =IF(B7>1999.99,(B7*0.08)/3,IF(B3<51,0,(B7*0.05)/3)) -> 0 | C15: =IF(C7>1999.99,(C7*0.08)/3,IF(C3<51,0,(C7*0.05)/3)) -> 0
A16: seventh | B16: =IF( B7>1999.99,(B7*0.05)/3,0) -> 0 | C16: =IF( C7>1999.99,(C7*0.05)/3,0) -> 0
A17: eighth | B17: =IF( B7>1999.99,(B7*0.02)/3,0) -> 0 | C17: =IF( C7>1999.99,(C7*0.02)/3,0) -> 0
A19: Total per Div | B19: =SUM(B10:B17) -> 0 | C19: =SUM(C10:C15) -> 0
A20: Total Purse | B20: =+B19*3 -> 0 | C20: =+C19*3 -> 0
